bitfinex/quotes_BTCUSD_20220109
["timestamp","ask_amount","ask_price","bid_price","bid_amount"]
[1641687377059,0.00043906,41624.0,41620.0,0.28363519]
[1641687377257,0.00043906,41624.0,41621.0,0.38691]
[1641687377655,0.00043906,41624.0,41621.0,0.71895343]
[1641687377856,0.00043906,41624.0,41621.0,0.446963]
[1641687378058,0.00043906,41624.0,41620.0,0.106]
[1641687378257,0.00043936,41624.0,41620.0,0.056]
[1641687378498,0.00043936,41624.0,41620.0,0.006]
[1641687378900,0.32385161,41622.0,41617.0,0.012013]
[1641687379400,0.00043936,41624.0,41617.0,0.012013]
[1641687379401,0.00043935,41624.0,41617.0,0.012013]
[1641687379601,0.00043935,41624.0,41620.0,0.012013]
[1641687380201,0.00043935,41624.0,41617.0,0.036]
[1641687380400,0.31662022,41624.0,41617.0,0.036]
[1641687380801,0.00043935,41624.0,41617.0,0.036]
[1641687381003,0.00043935,41624.0,41620.0,0.012013]
[1641687381205,0.00043935,41624.0,41621.0,0.38691]
[1641687381402,0.00043935,41624.0,41621.0,0.43691]
[1641687381605,0.00043933,41624.0,41621.0,0.48691]
[1641687381803,0.00043933,41624.0,41621.0,0.49791]
[1641687382656,0.00043935,41624.0,41621.0,0.39791]
[1641687383056,0.00043935,41624.0,41617.0,0.024024]
[1641687383656,0.060066,41625.0,41617.0,0.046024]
[1641687383960,2.13664397,41618.0,41617.0,0.022]
[1641687384158,2.62355397,41618.0,41617.0,0.022]
[1641687384557,0.38691,41618.0,41617.0,0.022]
[1641687384757,0.00124594,41621.0,41617.0,0.022]
[1641687384960,0.00126331,41625.0,41617.0,0.022]
[1641687385357,0.00126331,41625.0,41618.0,0.38691]
[1641687385558,0.00126331,41625.0,41619.0,0.05]
[1641687385758,0.00126331,41625.0,41620.0,0.398923]
[1641687386001,0.00126331,41625.0,41620.0,0.45898311]
[1641687386204,0.00126331,41625.0,41620.0,0.07207311]
[1641687386405,0.00126331,41625.0,41620.0,0.06006011]
[1641687386805,0.00126331,41625.0,41621.0,0.38691]
[1641687387001,0.00126331,41625.0,41621.0,0.48691]
[1641687387302,0.0044978,41626.0,41622.0,0.060051]
[1641687387501,0.0044978,41626.0,41623.0,0.43691]
[1641687387703,0.0044978,41626.0,41624.0,0.33448516]
[1641687387900,0.0044978,41626.0,41625.0,0.38691]
[1641687388100,0.0044978,41626.0,41625.0,0.43691]
[1641687388702,0.0044978,41626.0,41625.0,0.72757125]
[1641687388904,9.78e-05,41626.0,41625.0,0.82757125]
[1641687389306,9.78e-05,41626.0,41625.0,2.14367125]
[1641687389504,9.78e-05,41626.0,41625.0,0.87567125]
[1641687389755,9.78e-05,41626.0,41625.0,0.88867125]
[1641687390851,9.78e-05,41626.0,41625.0,2.35667125]
[1641687391051,9.78e-05,41626.0,41625.0,1.07567125]
[1641687391754,9.78e-05,41626.0,41625.0,1.08967125]
[1641687392352,9.78e-05,41626.0,41625.0,0.88967125]
[1641687392952,9.78e-05,41626.0,41625.0,0.87567125]
[1641687393697,9.78e-05,41626.0,41625.0,0.89567125]
[1641687394998,9.78e-05,41626.0,41625.0,0.87567125]
[1641687395198,9.78e-05,41626.0,41625.0,0.97567125]
[1641687395402,9.78e-05,41626.0,41625.0,0.87567125]
[1641687395599,9.78e-05,41626.0,41625.0,0.68501]
[1641687395798,9.78e-05,41626.0,41625.0,1.01257298]
[1641687396102,9.78e-05,41626.0,41625.0,0.91257298]
[1641687396299,9.78e-05,41626.0,41625.0,0.61901]
[1641687396499,9.78e-05,41626.0,41625.0,0.91035588]
[1641687397103,9.78e-05,41626.0,41625.0,0.87635588]
[1641687397853,9.78e-05,41626.0,41625.0,0.91435588]
[1641687398053,9.78e-05,41626.0,41625.0,0.47301]
[1641687398450,0.24236731,41633.0,41625.0,0.47301]
[1641687398451,0.24208924,41633.0,41625.0,0.47301]
[1641687398750,0.24208924,41633.0,41628.0,0.01201]
[1641687398951,0.33664456,41640.0,41631.0,0.34482685]
[1641687399753,0.33664456,41640.0,41631.0,0.37182685]
[1641687399952,0.33664456,41640.0,41633.0,0.012009]
[1641687400154,0.000696,41640.0,41638.0,0.37111048]
[1641687400554,0.000696,41640.0,41639.0,0.38691]
[1641687401011,0.000696,41640.0,41639.0,0.58691]
[1641687401813,0.000696,41640.0,41639.0,0.59291]
[1641687402210,0.000696,41640.0,41639.0,0.89231565]
[1641687402412,0.000696,41640.0,41639.0,0.79231565]
[1641687402613,0.000696,41640.0,41639.0,0.49291]
[1641687402811,0.000696,41640.0,41639.0,0.44291]
[1641687403010,0.000696,41640.0,41639.0,0.48691]
[1641687403510,0.0011438,41640.0,41639.0,0.48691]
[1641687403709,0.0011438,41640.0,41639.0,0.51791]
[1641687404110,0.0011438,41640.0,41639.0,0.61791]
[1641687404970,0.0011438,41640.0,41639.0,0.58691]
[1641687405365,0.0011438,41640.0,41639.0,1.03501]
[1641687405565,0.0011438,41640.0,41639.0,0.63501]
[1641687405768,0.0011438,41640.0,41639.0,0.64301]
[1641687406968,0.0011438,41640.0,41639.0,0.63501]
[1641687407867,0.0011438,41640.0,41639.0,0.703036]
[1641687408068,0.00113382,41640.0,41639.0,0.703036]
[1641687408507,0.00113382,41640.0,41639.0,0.603036]
[1641687408907,0.00113382,41640.0,41639.0,0.44301]
[1641687409106,0.00113404,41640.0,41631.0,0.096057]
[1641687409304,0.00113404,41640.0,41634.0,0.07204941]
[1641687409505,0.00113404,41640.0,41634.0,0.012009]
[1641687409706,0.00113404,41640.0,41634.0,0.3454617]
[1641687409907,0.00113404,41640.0,41635.0,0.38691]
[1641687410104,0.00113404,41640.0,41637.0,0.05]
[1641687410306,0.00043804,41638.0,41634.0,0.012]
[1641687410505,0.00043804,41638.0,41636.0,0.012008]
[1641687411106,0.00043804,41638.0,41629.0,0.12007]
[1641687411305,0.31341386,41636.0,41630.0,0.38691]
[1641687411510,0.31341386,41636.0,41623.0,0.5581062]
[1641687411708,0.31341386,41636.0,41626.0,0.53286858]
[1641687411907,0.0613262,41632.0,41630.0,0.023]
[1641687412255,0.38691,41631.0,41630.0,0.023]
[1641687412657,0.37235032,41640.0,41630.0,0.40991]
[1641687412859,0.00166592,41638.0,41630.0,0.023]
[1641687413055,0.00043804,41638.0,41629.0,0.12008122]
[1641687413456,0.00043804,41638.0,41630.0,0.05]
[1641687413656,0.00043804,41638.0,41633.0,0.012009]
[1641687414256,0.00043804,41638.0,41633.0,0.13207886]
[1641687414457,0.00043804,41638.0,41633.0,0.062009]
[1641687414657,0.00043804,41638.0,41635.0,0.060034]
[1641687414857,0.00043804,41638.0,41636.0,0.38691]
[1641687415156,0.000696,41640.0,41636.0,0.43691]
[1641687415360,0.000696,41640.0,41636.0,0.82354697]
[1641687415557,0.000696,41640.0,41637.0,0.012007]
[1641687416211,0.000696,41640.0,41636.0,0.017]
[1641687416413,0.2781248,41639.0,41636.0,0.017]
[1641687417011,0.2781248,41639.0,41633.0,0.06004247]
[1641687417212,0.2781248,41639.0,41630.0,0.34584396]
[1641687417414,0.00043803,41638.0,41631.0,0.38691]
[1641687417813,0.00043803,41638.0,41633.0,0.012009]
[1641687418015,0.00043803,41638.0,41634.0,0.43691]
[1641687418412,0.00043803,41638.0,41634.0,0.49694924]
[1641687418614,0.00043803,41635.0,41634.0,0.49694924]
[1641687418812,0.00043803,41635.0,41634.0,0.54694924]
[1641687419015,0.00043803,41635.0,41634.0,0.48691]
[1641687419854,0.00043803,41635.0,41634.0,0.50991]
[1641687420054,0.00043803,41635.0,41634.0,0.62998105]
[1641687421154,0.00043803,41635.0,41634.0,0.60698105]
[1641687421752,0.00043803,41635.0,41634.0,0.63598105]
[1641687422355,0.00043803,41635.0,41634.0,0.93344714]
[1641687422555,0.00043803,41635.0,41634.0,0.63598105]
[1641687423157,0.00043803,41635.0,41634.0,0.60698105]
[1641687423353,0.00043803,41635.0,41634.0,0.50698105]
[1641687423354,0.28840573,41635.0,41634.0,0.50698105]
[1641687423616,0.28840573,41635.0,41626.0,0.86948849]
[1641687423617,0.28840573,41635.0,41628.0,0.5100062]
[1641687423815,0.33398266,41629.0,41628.0,0.5100062]
[1641687424415,0.33398266,41629.0,41626.0,0.50884858]
[1641687424616,0.060062,41628.0,41626.0,0.50884858]
[1641687425722,0.06131894,41633.0,41626.0,0.50884858]
[1641687425924,0.002,41628.0,41626.0,0.62984858]
[1641687426120,0.002,41628.0,41627.0,0.38691]
[1641687427121,0.00043797,41634.0,41627.0,0.38691]
[1641687427354,0.00043798,41634.0,41629.0,0.024019]
[1641687427553,0.00043798,41634.0,41630.0,0.38691]
[1641687427753,0.00043798,41634.0,41630.0,0.43691]
[1641687427954,0.06048798,41634.0,41630.0,0.48691]
[1641687428153,0.06048798,41634.0,41631.0,0.01201]
[1641687428154,0.00043798,41634.0,41631.0,0.01201]
[1641687428356,0.00043802,41634.0,41630.0,0.1]
[1641687428556,0.00043802,41634.0,41629.0,0.005]
[1641687428956,0.06173675,41634.0,41629.0,0.005]
[1641687429157,0.446966,41633.0,41626.0,0.50884858]
[1641687429357,0.32329544,41632.0,41626.0,0.50884858]
[1641687429557,0.00121826,41629.0,41626.0,0.50884858]
[1641687429759,0.32499637,41628.0,41626.0,0.50884858]
[1641687430059,0.38505737,41628.0,41626.0,0.52484858]
[1641687430357,0.38505737,41628.0,41621.0,0.00037541]
[1641687430358,0.9,41626.0,41621.0,0.00037541]
[1641687430560,1.38691,41622.0,41621.0,0.00037545]
[1641687430762,1.50032998,41622.0,41621.0,0.00037545]
[1641687431214,1.56041198,41622.0,41621.0,0.00037545]
[1641687431414,2.3341111,41622.0,41621.0,0.00075096]
[1641687431618,2.3341111,41622.0,41621.0,0.00037551]
[1641687432015,2.3381111,41622.0,41621.0,0.00037551]
[1641687433015,2.4381111,41622.0,41621.0,0.00037551]
[1641687433215,2.4341111,41622.0,41621.0,0.00037551]
[1641687433417,2.3341111,41622.0,41621.0,0.00037551]
[1641687433619,2.4341111,41622.0,41621.0,0.00037551]
[1641687433817,2.4401111,41622.0,41621.0,0.0003755]
[1641687435054,2.3341111,41622.0,41621.0,0.0003755]
[1641687435449,2.4341111,41622.0,41621.0,0.0003755]
[1641687435649,2.4341111,41622.0,41601.0,0.012018]
[1641687435650,0.060091,41606.0,41601.0,0.012018]
[1641687435850,0.060091,41606.0,41602.0,0.38691]
[1641687436050,0.060091,41606.0,41603.0,0.05]
[1641687436851,0.060091,41606.0,41602.0,0.34447608]
[1641687437050,0.060091,41606.0,41603.0,0.05]
[1641687437252,0.32058701,41608.0,41603.0,0.05]
[1641687437850,0.32058701,41608.0,41603.0,0.055]
[1641687438251,0.32058701,41608.0,41605.0,0.00038045]
[1641687438501,0.38691,41607.0,41605.0,0.00038045]
[1641687438698,0.360094,41606.0,41605.0,0.00038045]
[1641687438900,1.05866745,41606.0,41605.0,0.00038045]
[1641687439100,1.70806705,41606.0,41605.0,0.00038045]
[1641687439300,1.70806705,41606.0,41605.0,0.00076987]
[1641687439500,1.80806705,41606.0,41605.0,0.00038942]
[1641687439900,1.81406705,41606.0,41605.0,0.00038942]
[1641687440298,1.81406705,41606.0,41605.0,0.00038943]
[1641687440501,1.81406705,41606.0,41597.0,0.00011]
[1641687440700,0.01670529,41598.0,41597.0,0.00011]
[1641687440901,0.83257042,41598.0,41597.0,0.00011]
[1641687441303,0.70138529,41598.0,41589.0,0.00011]
[1641687441510,0.34753138,41589.0,41587.0,0.00011]
[1641687441701,0.34753138,41589.0,41585.0,0.51059149]
[1641687441702,0.43633712,41589.0,41585.0,0.50603149]
[1641687441902,0.23813888,41588.0,41585.0,0.50603149]
[1641687442256,0.23813888,41588.0,41581.0,0.00411]
[1641687442257,0.060124,41588.0,41581.0,0.00411]
[1641687442456,0.38691,41587.0,41581.0,0.00411]
[1641687442661,0.38691,41587.0,41586.0,0.00041275]
[1641687443656,0.38820637,41587.0,41586.0,0.00037812]
[1641687443859,0.75521555,41587.0,41586.0,0.00737812]
[1641687445060,0.44932937,41587.0,41586.0,0.00737812]
[1641687445260,0.44832937,41587.0,41586.0,0.00037812]
[1641687445460,0.44454059,41587.0,41586.0,0.00037812]
[1641687445661,0.38441759,41587.0,41586.0,0.00037812]
[1641687446006,0.38741759,41587.0,41586.0,0.00537812]
[1641687446609,0.38741759,41587.0,41586.0,0.00575624]
[1641687446809,0.50767459,41587.0,41586.0,0.00575624]
[1641687447008,0.50767459,41587.0,41586.0,0.00537812]
[1641687447207,0.50467459,41587.0,41586.0,0.00037812]
[1641687447509,0.50467459,41587.0,41586.0,0.00072664]
[1641687447708,0.50467459,41587.0,41586.0,0.00034852]
[1641687447910,0.85667459,41587.0,41586.0,0.00534852]
[1641687448109,0.50667459,41587.0,41586.0,0.00534852]
[1641687448509,0.50667459,41587.0,41586.0,0.00570544]
[1641687448711,0.50667459,41587.0,41586.0,0.00535692]
[1641687448911,0.85667459,41587.0,41586.0,0.00535692]
[1641687449312,0.50467459,41587.0,41586.0,0.00035692]
[1641687449955,0.95767459,41587.0,41586.0,0.00335692]
[1641687450551,1.27451705,41587.0,41586.0,0.00335692]
[1641687450751,1.27451705,41587.0,41586.0,0.0037288]
[1641687450954,1.27451705,41587.0,41586.0,0.00337188]
[1641687451152,1.27451705,41587.0,41586.0,0.00037188]
[1641687451352,1.27151705,41587.0,41586.0,0.00037188]
[1641687451953,1.27551705,41587.0,41586.0,0.00137168]
[1641687452152,1.47551705,41587.0,41586.0,0.00137168]
[1641687452553,1.37551705,41587.0,41586.0,0.00137168]
[1641687452853,1.47551705,41587.0,41586.0,0.00137168]
[1641687453505,0.90159168,41579.0,41578.0,0.00033]
[1641687453713,0.9,41575.0,41571.0,0.00433]
[1641687453909,0.387257,41574.0,41571.0,0.00433]
[1641687454107,0.00121205,41572.0,41568.0,0.0001]
[1641687454310,0.387257,41571.0,41568.0,0.0001]
[1641687454509,0.53923921,41570.0,41568.0,0.0001]
[1641687454710,0.387257,41569.0,41568.0,0.0001]
[1641687454908,0.387257,41569.0,41561.0,0.29764211]
[1641687455108,0.53923921,41570.0,41569.0,0.00040456]
[1641687455308,0.92649621,41570.0,41569.0,0.00040456]
[1641687455509,0.387257,41569.0,41562.0,0.36536068]
[1641687455710,0.53923921,41570.0,41562.0,0.46536068]
[1641687455909,0.54223921,41570.0,41562.0,0.46536068]
[1641687456109,0.60238821,41570.0,41562.0,0.46536068]
[1641687456309,0.54223921,41570.0,41562.0,0.1]
[1641687456510,0.54223921,41570.0,41562.0,0.05]
[1641687456711,0.66255121,41570.0,41562.0,0.05]
[1641687456913,0.66255121,41570.0,41561.0,0.39764211]
[1641687457110,0.060153,41566.0,41561.0,0.39764211]
[1641687457555,0.060153,41566.0,41561.0,0.39264211]
[1641687459157,0.060156,41564.0,41561.0,0.096116]
[1641687459357,0.53871706,41569.0,41561.0,0.046116]
[1641687459560,0.41840806,41569.0,41563.0,0.00041104]
[1641687459956,0.33670297,41570.0,41563.0,0.00041104]
[1641687460160,0.00159168,41579.0,41564.0,0.3652242]
[1641687460359,0.06173168,41579.0,41565.0,0.36348489]
[1641687460558,0.06173168,41579.0,41565.0,0.15]
[1641687460756,0.06173168,41579.0,41571.0,0.31624906]
[1641687461009,0.00159168,41579.0,41571.0,0.1]
[1641687461207,0.25517384,41576.0,41571.0,0.1]
[1641687461408,0.25517384,41576.0,41571.0,0.05]
[1641687461608,0.25517384,41576.0,41569.0,0.1]
[1641687461809,0.25517384,41576.0,41569.0,0.05]
[1641687461810,0.31531384,41576.0,41569.0,0.05]
[1641687462007,0.31531384,41576.0,41571.0,0.009]
[1641687463209,0.31531384,41576.0,41569.0,0.1]
[1641687463411,0.31531384,41576.0,41569.0,0.05]
[1641687463611,0.31531384,41576.0,41566.0,0.012028]
[1641687464115,0.06014,41576.0,41571.0,0.28916236]
[1641687464512,0.06014,41576.0,41571.0,0.38916236]
[1641687464766,0.00159168,41579.0,41572.0,0.29039286]
[1641687465164,0.00159168,41579.0,41575.0,0.060121]
[1641687465362,0.00159168,41579.0,41578.0,0.55595103]
[1641687465562,0.00159168,41579.0,41578.0,1.14320803]
[1641687465763,0.00159168,41579.0,41578.0,0.587257]
[1641687465964,0.00159168,41579.0,41578.0,0.503257]
[1641687466163,0.00159168,41579.0,41578.0,0.603257]
[1641687466562,0.00159168,41579.0,41578.0,0.503257]
[1641687467164,0.00159168,41579.0,41578.0,0.487257]
[1641687467366,0.00159168,41579.0,41578.0,0.587257]
[1641687467568,0.00159168,41579.0,41572.0,0.0481]
[1641687467569,0.0028672,41579.0,41572.0,0.0481]
[1641687467766,0.06576949,41578.0,41568.0,0.30250664]
[1641687467964,0.06576949,41578.0,41567.0,0.2]
[1641687468603,0.31157102,41574.0,41567.0,0.1]
[1641687468803,0.31157102,41574.0,41567.0,0.05]
[1641687469005,0.31157102,41574.0,41569.0,0.012028]
[1641687469805,0.31157102,41574.0,41567.0,0.1]
[1641687470007,0.26240793,41572.0,41569.0,0.011]
[1641687470312,0.02144979,41570.0,41569.0,0.011]
[1641687470506,1.30870679,41570.0,41569.0,0.011]
[1641687470907,1.40870679,41570.0,41569.0,0.011]
[1641687471305,0.40540134,41565.0,41564.0,0.00036635]
[1641687471504,1.05079351,41565.0,41564.0,0.00036635]
[1641687471704,0.64539217,41565.0,41564.0,0.00036636]
[1641687472104,0.64939217,41565.0,41564.0,0.00336636]
[1641687472559,0.70955417,41565.0,41564.0,0.00336636]
[1641687472757,0.26213517,41565.0,41564.0,0.00373276]
[1641687472956,0.26083519,41565.0,41564.0,0.0033664]
[1641687473156,0.004,41565.0,41564.0,0.0033664]
[1641687473357,0.5544,41570.0,41564.0,0.0003664]
[1641687473558,0.387257,41569.0,41564.0,0.0003664]
[1641687473759,0.060151,41567.0,41564.0,0.0003664]
[1641687473958,0.060151,41567.0,41564.0,0.00436641]
[1641687474159,0.24201726,41566.0,41564.0,0.00436641]
[1641687474960,0.24201726,41566.0,41564.0,0.0043664]
[1641687475362,0.24201726,41566.0,41564.0,0.0003664]
[1641687475561,0.2636927,41572.0,41564.0,0.0003664]
[1641687475762,0.00128477,41572.0,41564.0,0.0003664]
[1641687476007,0.5589,41577.0,41564.0,0.0057328]
[1641687476008,0.679183,41577.0,41564.0,0.0057328]
[1641687476308,0.06014739,41575.0,41564.0,0.0053664]
[1641687476709,0.28390176,41571.0,41564.0,0.0053664]
[1641687477113,0.28390176,41571.0,41566.0,0.43097776]
[1641687477610,0.28390176,41571.0,41564.0,0.00036636]
[1641687477816,0.060153,41566.0,41564.0,0.00036636]
[1641687478210,0.060153,41566.0,41564.0,0.00073273]
[1641687478410,0.060153,41566.0,41564.0,0.00036637]
[1641687479213,1.060153,41566.0,41564.0,0.00036637]
[1641687479412,0.387257,41565.0,41564.0,0.0003664]
[1641687479612,1.18696902,41565.0,41564.0,0.0003664]
[1641687480064,1.18996902,41565.0,41564.0,0.0123664]
[1641687480266,1.28572902,41565.0,41564.0,0.0123664]
[1641687480468,1.28702777,41565.0,41564.0,0.01273281]
[1641687480665,1.68702777,41565.0,41564.0,0.01236641]
[1641687481567,0.50657363,41564.0,41561.0,0.001116]
[1641687481765,1.28847077,41562.0,41561.0,0.001116]
[1641687482564,1.56968092,41562.0,41561.0,0.001116]
[1641687482969,1.347431,41561.0,41559.0,4.6e-05]
[1641687483165,0.71839843,41560.0,41559.0,4.6e-05]
[1641687484007,0.72339843,41560.0,41559.0,4.6e-05]
[1641687484607,0.39353566,41560.0,41559.0,4.6e-05]
[1641687485013,0.392257,41560.0,41559.0,4.6e-05]
[1641687485208,0.005,41560.0,41559.0,4.6e-05]
[1641687485407,0.060172,41561.0,41559.0,4.6e-05]
[1641687485612,0.387257,41560.0,41559.0,4.6e-05]
[1641687486009,0.061172,41561.0,41559.0,0.00041682]
[1641687486909,0.001,41561.0,41559.0,0.00041682]
[1641687487107,0.001,41561.0,41559.0,0.00041681]
[1641687487361,0.28121015,41562.0,41559.0,0.00041681]
[1641687487859,0.28121015,41562.0,41557.0,0.365295]
[1641687488059,0.28121015,41562.0,41557.0,0.30514039]
[1641687488264,0.28121015,41562.0,41559.0,0.00037962]
[1641687488459,0.00126439,41565.0,41559.0,0.00037962]
[1641687488759,0.387257,41564.0,41559.0,0.00037962]
[1641687489360,0.382257,41564.0,41559.0,0.00037962]
[1641687489559,0.6405359,41564.0,41559.0,0.00037962]
[1641687489763,0.060157,41562.0,41559.0,0.00037962]
[1641687490461,0.060157,41562.0,41557.0,0.30514039]
[1641687490660,0.060157,41562.0,41557.0,0.30014039]
[1641687491308,0.060157,41562.0,41557.0,0.40014039]
[1641687491709,0.060157,41562.0,41557.0,0.41217239]
[1641687492311,0.060157,41562.0,41557.0,0.30014039]
[1641687492510,0.060157,41562.0,41556.0,0.40294125]
[1641687492810,0.00120059,41559.0,41556.0,0.00022]
[1641687493016,0.060175,41558.0,41556.0,0.00022]
[1641687493210,0.30906905,41557.0,41556.0,0.00022]
[1641687493414,0.00577521,41557.0,41556.0,0.00022]
[1641687493611,0.39316621,41557.0,41556.0,0.00022]
[1641687494010,0.73890342,41557.0,41554.0,0.00035274]
[1641687494212,0.960183,41555.0,41554.0,0.00035274]
[1641687494411,1.34881016,41555.0,41554.0,0.00035274]
[1641687495265,1.34881016,41555.0,41547.0,0.00011]
[1641687495266,0.06018151,41552.0,41547.0,0.00011]
[1641687495463,1.69002214,41552.0,41547.0,0.00011]
[1641687495663,1.75592636,41552.0,41547.0,0.00011]
[1641687495864,1.00592636,41552.0,41547.0,0.00011]
[1641687496068,0.63754722,41552.0,41547.0,0.00011]
[1641687496867,0.61319722,41552.0,41547.0,0.00011]
[1641687497064,0.22580622,41552.0,41547.0,0.00011]
[1641687497264,0.06590422,41552.0,41547.0,0.00011]
[1641687498064,0.06890422,41552.0,41547.0,0.00011]
[1641687498265,0.06890422,41552.0,41547.0,0.5108303]
[1641687498511,0.06890422,41552.0,41549.0,0.0005861]
[1641687498910,0.12907622,41552.0,41549.0,0.0005861]
[1641687499910,0.12607622,41552.0,41549.0,0.0005861]
[1641687500109,0.12907622,41552.0,41549.0,0.0005861]
[1641687501112,0.51646722,41552.0,41549.0,0.0005861]
[1641687501313,0.51346722,41552.0,41549.0,0.0005861]
[1641687501912,0.51346722,41552.0,41549.0,0.00059483]
[1641687502261,0.51446722,41552.0,41549.0,0.00059483]
[1641687502865,0.57464711,41552.0,41549.0,0.00095399]
[1641687503063,0.57464711,41552.0,41549.0,0.00057916]
[1641687503064,0.51446722,41552.0,41549.0,0.00057916]
[1641687503263,0.81446722,41552.0,41549.0,0.00057916]
[1641687503465,0.82660908,41552.0,41549.0,0.00057916]
[1641687503866,0.51446722,41552.0,41549.0,0.00057916]
[1641687504064,0.52646722,41552.0,41549.0,0.00057916]
[1641687505266,1.12431837,41552.0,41549.0,0.00057916]
[1641687505467,1.11131837,41552.0,41549.0,0.00057916]
[1641687506113,1.18506837,41552.0,41549.0,0.00057897]
[1641687506314,1.26816711,41550.0,41549.0,0.00057897]
[1641687506518,1.75555811,41550.0,41549.0,0.00057897]
[1641687506814,0.04734885,41546.0,41544.0,0.00022]
[1641687507014,0.72288218,41545.0,41544.0,0.00022]
[1641687507413,0.387391,41545.0,41544.0,0.00022]
[1641687508214,0.408391,41545.0,41544.0,0.00022]
[1641687508414,0.021,41545.0,41544.0,0.29903977]
[1641687508618,0.021,41545.0,41544.0,0.34903977]
[1641687508813,0.021,41545.0,41544.0,0.73643077]
[1641687509414,0.36816711,41550.0,41544.0,1.08026238]
[1641687509613,0.36816711,41550.0,41544.0,0.81320734]
[1641687509872,0.36816711,41550.0,41544.0,0.86320734]
[1641687510874,0.36816711,41550.0,41544.0,0.34405161]
[1641687511077,0.36816711,41550.0,41544.0,0.00022]
[1641687511274,0.387391,41549.0,41544.0,0.00022]
[1641687511475,0.06590771,41549.0,41544.0,0.00022]
[1641687511679,0.387391,41548.0,41544.0,0.00058377]
[1641687511878,0.95324878,41545.0,41544.0,0.00058377]
[1641687512079,1.34063978,41545.0,41544.0,0.00058377]
[1641687512477,0.387391,41545.0,41544.0,0.00058377]
[1641687512680,0.0012434,41548.0,41544.0,0.00058377]
[1641687512978,0.387391,41547.0,41544.0,0.0005838]
[1641687513614,0.0012434,41548.0,41545.0,0.38312757]
[1641687513816,0.06590771,41549.0,41545.0,0.38312757]
[1641687514219,0.003,41548.0,41545.0,0.38312757]
[1641687514818,0.003,41548.0,41546.0,0.012035]
[1641687515416,0.06590771,41549.0,41546.0,0.012035]
[1641687515818,0.388628,41548.0,41544.0,0.00059247]
[1641687516016,0.060183,41546.0,41544.0,0.00059247]
[1641687516216,1.037391,41545.0,41544.0,0.00057694]
[1641687516617,0.387391,41545.0,41544.0,0.00057694]
[1641687517260,0.837391,41545.0,41544.0,0.00057697]
[1641687517860,0.65,41544.0,41541.0,0.00093297]
[1641687518057,0.447581,41543.0,41541.0,0.00093297]
[1641687518859,0.06019,41543.0,41541.0,0.00093297]
[1641687519258,0.064183,41545.0,41541.0,0.00093297]
[1641687519464,0.004,41545.0,41541.0,0.00093297]
[1641687520062,0.120372,41547.0,41541.0,0.00093297]
[1641687520261,0.004,41545.0,41541.0,0.00093297]
[1641687520467,0.060186,41543.0,41541.0,0.00093297]
[1641687520663,0.387391,41542.0,41541.0,0.00093297]
[1641687520863,0.060186,41543.0,41541.0,0.00093297]
[1641687522113,0.061186,41543.0,41541.0,0.00093297]
[1641687523410,0.060186,41543.0,41541.0,0.00093297]
[1641687524113,0.061186,41543.0,41541.0,0.00093297]
[1641687524313,0.001,41543.0,41541.0,0.00093297]
[1641687525658,0.001,41543.0,41540.0,0.05644297]
[1641687526061,0.0366898,41544.0,41541.0,0.9981113]
[1641687526458,0.00044617,41549.0,41541.0,0.9981113]
[1641687526660,0.00044617,41549.0,41541.0,0.6107203]
[1641687526860,0.24638017,41547.0,41541.0,0.5107203]
[1641687527662,0.060186,41543.0,41540.0,0.00011]
[1641687527960,0.00044617,41549.0,41540.0,0.06029]
[1641687528160,0.002,41543.0,41540.0,0.06029]
[1641687528361,0.002,41543.0,41541.0,0.387391]
[1641687529411,0.26776404,41547.0,41541.0,0.387391]
[1641687529611,0.26776404,41547.0,41540.0,0.22046995]
[1641687529815,0.32794404,41547.0,41540.0,0.22046995]
[1641687530210,0.00044617,41549.0,41540.0,0.22046995]
[1641687530411,0.00044619,41549.0,41540.0,0.22046995]
[1641687531013,0.06062219,41549.0,41540.0,0.22046995]
[1641687531412,0.06062219,41549.0,41540.0,0.73119025]
[1641687531612,0.0606222,41549.0,41540.0,0.73119025]
[1641687532262,0.060178,41548.0,41540.0,0.22046995]
[1641687532461,0.060178,41548.0,41540.0,0.12046995]
[1641687532658,0.0014462,41549.0,41540.0,0.12046995]
[1641687532860,0.0014462,41549.0,41540.0,0.63119025]
[1641687533559,0.060183,41545.0,41540.0,0.00011]
[1641687533762,0.1218102,41549.0,41540.0,0.00011]
[1641687533960,0.1208102,41549.0,41540.0,0.00011]
[1641687534161,0.060186,41547.0,41540.0,0.00011]
[1641687534763,0.26736939,41544.0,41540.0,0.00011]
[1641687535565,0.30203886,41548.0,41540.0,0.00011]
[1641687535766,0.00044619,41549.0,41540.0,0.00011]
[1641687536006,0.29182325,41549.0,41540.0,0.00011]
[1641687536808,0.060181,41546.0,41540.0,0.00011]
[1641687537208,0.060181,41546.0,41540.0,0.060291]
[1641687537410,0.31080172,41543.0,41540.0,0.00011]
[1641687537811,0.00125505,41547.0,41540.0,0.00011]
[1641687538211,0.003,41543.0,41540.0,0.00011]
[1641687538814,0.003,41543.0,41540.0,0.5108303]
[1641687539414,0.060188,41546.0,41540.0,0.5108303]
[1641687539761,0.060187,41542.0,41540.0,0.00011]
[1641687542262,0.063187,41542.0,41540.0,0.00011]
[1641687542667,1.22332835,41541.0,41540.0,0.00011]
[1641687542865,1.61200116,41541.0,41540.0,0.00011]
[1641687543168,1.71200116,41541.0,41540.0,0.00011]
[1641687543511,1.9951327,41541.0,41540.0,0.00011]
[1641687543711,2.39412158,41541.0,41540.0,0.00011]
[1641687544309,2.44722158,41541.0,41540.0,0.00011]
[1641687544610,2.54722158,41541.0,41540.0,0.00011]
[1641687545410,1.9482327,41541.0,41540.0,0.00011]
[1641687545611,1.37696375,41541.0,41540.0,0.00011]
[1641687545812,0.9536354,41541.0,41540.0,0.00011]
[1641687546213,0.9586354,41541.0,41540.0,0.00011]
[1641687546814,0.67550386,41541.0,41540.0,0.00011]
[1641687547013,0.62740386,41541.0,41540.0,0.00011]
[1641687547262,0.62619002,41541.0,41540.0,0.00011]
[1641687547462,0.62119002,41541.0,41540.0,0.00011]
[1641687548266,0.62719002,41541.0,41540.0,0.00011]
[1641687548867,0.10014324,41541.0,41540.0,0.00011]
[1641687549566,0.09414324,41541.0,41540.0,0.00011]
[1641687550370,0.10014324,41541.0,41540.0,0.00011]
[1641687551213,0.9,41540.0,41539.0,0.0004652]
[1641687551413,0.060187,41542.0,41539.0,0.0004652]
[1641687552210,0.066187,41542.0,41539.0,0.0008204]
[1641687552410,0.066187,41542.0,41539.0,0.0004652]
[1641687553414,0.060187,41542.0,41539.0,0.0004652]